fUST/lending_fUST_20241027
["ID","MTS","AMOUNT","RATE_DAILY","PERIOD"]
[340890440,1730026257560,-980.38,0.00027671,30]
[340890441,1730026257569,-500.0,0.00027671,30]
[340890442,1730026257579,-921.29,0.00027671,30]
[340890443,1730026257588,-500.0,0.00027671,30]
[340890444,1730026257597,-500.0,0.00027671,30]
[340890445,1730026257607,-1202.28,0.00027671,30]
[340890446,1730026257617,-626.68610764,0.00027671,30]
[340890447,1730026257626,-500.0,0.00027671,30]
[340890448,1730026257636,-500.0,0.00027671,30]
[340890449,1730026257645,-500.0,0.00027671,30]
[340890450,1730026257655,-510.02,0.00027671,30]
[340890451,1730026257665,-1727.5,0.00027671,30]
[340890452,1730026257674,-500.0,0.00027671,30]
[340890453,1730026257684,-505.56627243,0.00027671,30]
[340890454,1730026257695,-306.09551001,0.00027671,30]
[340890455,1730026257706,-819.86,0.00027671,30]
[340890456,1730026257715,-634.5,0.00027671,30]
[340890457,1730026257726,-500.0,0.00027671,30]
[340890458,1730026257736,-500.0,0.00027671,30]
[340890459,1730026257746,-500.0,0.00027671,30]
[340890460,1730026257755,-1189.85,0.00027671,30]
[340890461,1730026257765,-1553.66,0.00027671,30]
[340890462,1730026257776,-500.0,0.00027671,30]
[340890463,1730026257788,-500.0,0.00027671,7]
[340890464,1730026257797,-500.0,0.00027671,30]
[340890465,1730026257806,-500.0,0.00027671,30]
[340890466,1730026257816,-500.0,0.00027671,30]
[340890467,1730026257825,-1395.51,0.00027671,30]
[340890468,1730026257836,-500.0,0.00027671,30]
[340890469,1730026257846,-500.0,0.00027671,30]
[340890470,1730026257856,-520.79090208,0.00027671,30]
[340890471,1730026257867,-500.0,0.00027671,30]
[340890472,1730026257877,-500.0,0.00027671,30]
[340890473,1730026257886,-500.0,0.00027671,30]
[340890474,1730026257895,-572.35,0.00027671,30]
[340890475,1730026257907,-500.0,0.00027671,30]
[340890476,1730026257916,-500.0,0.00027671,30]
[340890477,1730026257926,-500.0,0.00027671,30]
[340890478,1730026257937,-581.68201023,0.00027671,30]
[340890479,1730026257948,-500.0,0.00027671,30]
[340890480,1730026257958,-512.74279018,0.00027671,30]
[340890481,1730026257970,-500.0,0.00027671,30]
[340890482,1730026257981,-500.0,0.00027671,30]
[340890483,1730026257990,-500.0,0.00027671,30]
[340890484,1730026257999,-500.0,0.00027671,30]
[340890485,1730026258008,-1147.55,0.00027671,30]
[340890486,1730026258017,-405.8544846,0.00027671,30]
[340890487,1730026258026,-824.82,0.00027671,30]
[340890488,1730026258036,-500.0,0.00027671,30]
[340890489,1730026258044,-500.0,0.00027671,30]
[340890490,1730026258054,-500.0,0.00027671,30]
[340890491,1730026258064,-500.0,0.00027671,30]
[340890492,1730026258073,-500.0,0.00027671,30]
[340890493,1730026258083,-500.0,0.00027671,30]
[340890494,1730026258092,-1384.68,0.00027671,30]
[340890495,1730026258102,-500.0,0.00027671,30]
[340890496,1730026258112,-500.0,0.00027671,30]
[340890497,1730026258123,-500.0,0.00027671,30]
[340890498,1730026258133,-500.0,0.00027671,30]
[340890499,1730026258143,-500.0,0.00027671,30]
[340890500,1730026258153,-1800.5,0.00027671,30]
[340890501,1730026258162,-500.0,0.00027671,30]
[340890502,1730026258171,-509.97136863,0.00027671,30]
[340890503,1730026258181,-500.0,0.00027671,30]
[340890504,1730026258190,-1922.76,0.00027671,30]
[340890505,1730026258199,-500.0,0.00027671,30]
[340890506,1730026258209,-34678.47,0.00027671,30]
[340890507,1730026258218,-585.78,0.00027671,30]
[340890508,1730026258228,-500.0,0.00027671,30]
[340890509,1730026258239,-514.22500066,0.00027671,30]
[340890510,1730026258249,-500.0,0.00027671,30]
[340890511,1730026258258,-500.0,0.00027671,2]
[340890512,1730026258267,-500.0,0.00027671,30]
[340890513,1730026258276,-7628.43,0.00027671,21]
[340890514,1730026258285,-500.0,0.00027671,30]
[340890515,1730026258295,-1532.01,0.00027671,30]
[340890516,1730026258308,-283.63553199,0.00027671,30]
[340890517,1730026258319,-500.0,0.00027671,30]
[340890518,1730026258331,-774.93,0.00027671,30]
[340890519,1730026258344,-500.0,0.00027671,30]
[340890520,1730026258354,-500.0,0.00027671,30]
[340890521,1730026258364,-500.0,0.00027671,30]
[340890522,1730026258374,-472.69200843,0.00027671,30]
[340890523,1730026258384,-500.0,0.00027671,30]
[340890524,1730026258396,-500.0,0.00027671,30]
[340890525,1730026258407,-623.73673547,0.00027671,30]
[340890526,1730026258417,-500.0,0.00027671,30]
[340890527,1730026258428,-2946.04,0.00027671,30]
[340890528,1730026258439,-500.0,0.00027671,30]
[340890529,1730026258449,-504.08361147,0.00027671,30]
[340890530,1730026258459,-289.23,0.00027671,7]
[340890531,1730026258471,-500.0,0.00027671,30]
[340890532,1730026258481,-500.0,0.00027671,30]
[340890533,1730026258491,-500.0,0.00027671,30]
[340890534,1730026258501,-500.0,0.00027671,30]
[340890535,1730026258514,-500.0,0.00027671,30]
[340890536,1730026258525,-4526.57,0.00027671,30]
[340890537,1730026258536,-809.02,0.00027671,30]
[340890538,1730026258546,-954.33,0.00027671,30]
[340890539,1730026258556,-500.0,0.00027671,30]
[340890540,1730026258690,-500.0,0.00027671,30]
[340890541,1730026258700,-500.0,0.00027671,30]
[340890542,1730026258709,-500.0,0.00027671,30]
[340890543,1730026258718,-1951.74,0.00027671,30]
[340890544,1730026258727,-500.0,0.00027671,30]
[340890545,1730026258737,-500.0,0.00027671,30]
[340890546,1730026258746,-556.8976221,0.00027671,30]
[340890547,1730026258756,-10225.82,0.00027671,30]
[340890548,1730026258765,-500.0,0.00027671,30]
[340890549,1730026258775,-616.3982336,0.00027671,30]
[340890550,1730026258784,-862.93,0.00027671,30]
[340890551,1730026258793,-222.1874978,0.00027671,30]
[340890552,1730026258803,-500.0,0.00027671,30]
[340890553,1730026258812,-500.0,0.00027671,30]
[340890554,1730026258821,-2041.93,0.00027671,30]
[340890555,1730026258831,-500.0,0.00027671,30]
[340890556,1730026258840,-1468.42,0.00027671,30]
[340890557,1730026258849,-744.54,0.00027671,30]
[340890558,1730026258858,-500.0,0.00027671,30]
[340890559,1730026258868,-500.0,0.00027671,30]
[340890560,1730026258877,-500.0,0.00027671,30]
[340890561,1730026258887,-500.0,0.00027671,30]
[340890562,1730026258897,-500.0,0.00027671,30]
[340890563,1730026258906,-500.0,0.00027671,30]
[340890564,1730026258915,-500.0,0.00027671,30]
[340890565,1730026258924,-500.0,0.00027671,30]
[340890566,1730026258933,-500.0,0.00027671,30]
[340890567,1730026258943,-500.0,0.00027671,30]
[340890568,1730026258952,-507.527017,0.00027671,30]
[340890569,1730026258961,-500.0,0.00027671,30]
[340890570,1730026258971,-500.0,0.00027671,30]
[340890571,1730026258980,-500.0,0.00027671,30]
[340890572,1730026258989,-500.0,0.00027671,30]
[340890573,1730026258999,-1483.37,0.00027671,30]
[340890574,1730026259010,-500.0,0.00027671,30]
[340890575,1730026259019,-1238.85,0.00027671,30]
[340890576,1730026259029,-500.0,0.00027671,30]
[340890577,1730026259038,-661.24,0.00027671,30]
[340890578,1730026259048,-7555.62,0.00027671,30]
[340890579,1730026259058,-500.0,0.00027671,30]
[340890580,1730026259069,-1775.34,0.00027671,30]
[340890581,1730026259079,-500.0,0.00027671,30]
[340890582,1730026259088,-1308.96,0.00027671,30]
[340890583,1730026259097,-510.84664378,0.00027671,30]
[340890584,1730026259107,-500.0,0.00027671,30]
[340890585,1730026259119,-500.0,0.00027671,30]
[340890586,1730026259130,-500.0,0.00027671,30]
[340890587,1730026259139,-500.0,0.00027671,30]
[340890588,1730026259151,-2676.64,0.00027671,30]
[340890589,1730026259162,-1318.55,0.00027671,30]
[340890590,1730026259174,-500.0,0.00027671,30]
[340890591,1730026259185,-500.0,0.00027671,30]
[340890592,1730026259196,-500.0,0.00027671,30]
[340890593,1730026259207,-3472.82,0.00027671,30]
[340890594,1730026259219,-996.19,0.00027671,30]
[340890595,1730026259230,-500.0,0.00027671,30]
[340890596,1730026259240,-490.10783714,0.00027671,30]
[340890597,1730026259250,-500.0,0.00027671,30]
[340890598,1730026259261,-500.0,0.00027671,30]
[340890599,1730026259272,-500.0,0.00027671,30]
[340890600,1730026259283,-500.0,0.00027671,30]
[340890601,1730026259292,-500.0,0.00027671,30]
[340890602,1730026259307,-502.91344076,0.00027671,30]
[340890603,1730026259317,-525.60633394,0.00027671,30]
[340890604,1730026259327,-2057.63,0.00027671,30]
[340890605,1730026259337,-500.0,0.00027671,30]
[340890606,1730026259348,-500.0,0.00027671,30]
[340890607,1730026259358,-500.0,0.00027671,30]
[340890608,1730026259369,-871.89,0.00027671,30]
[340890609,1730026259379,-396.76844694,0.00027671,30]
[340890610,1730026259389,-925.88,0.00027671,30]
[340890611,1730026259399,-566.57,0.00027671,30]
[340890612,1730026259410,-501.53553432,0.00027671,30]
[340890613,1730026259420,-500.0,0.00027671,30]
[340890614,1730026259429,-500.0,0.00027671,30]
[340890615,1730026259439,-521.63325757,0.00027671,30]
[340890616,1730026259450,-500.0,0.00027671,30]
[340890617,1730026259460,-500.0,0.00027671,30]
[340890618,1730026259471,-3344.07,0.00027671,30]
[340890619,1730026259481,-915.97,0.00027671,30]
[340890620,1730026259490,-649.48225399,0.00027671,30]
[340890621,1730026259501,-500.0,0.00027671,30]
[340890622,1730026259513,-508.92958626,0.00027671,30]
[340890623,1730026259523,-502.38013976,0.00027671,30]
[340890624,1730026259532,-500.0,0.00027671,30]
[340890625,1730026259544,-1279.91,0.00027671,30]
[340890626,1730026259554,-1032.13,0.00027671,30]
[340890627,1730026259563,-1277.15,0.00027671,30]
[340890628,1730026259573,-500.0,0.00027671,30]
[340890629,1730026259585,-511.30686025,0.00027671,30]
[340890630,1730026259596,-1756.47,0.00027671,30]
[340890631,1730026259608,-535.94994385,0.00027671,30]
[340890632,1730026259618,-853.07,0.00027671,30]
[340890633,1730026259628,-500.0,0.00027671,30]
[340890634,1730026259639,-1454.15,0.00027671,30]
[340890635,1730026259651,-500.0,0.00027671,30]
[340890636,1730026259661,-500.0,0.00027671,30]
[340890637,1730026259673,-500.0,0.00027671,30]
[340890638,1730026259683,-710.48,0.00027671,30]
[340890639,1730026259693,-500.0,0.00027671,30]
[340890640,1730026259703,-500.0,0.00027671,30]
[340890641,1730026259715,-1225.79,0.00027671,30]
[340890642,1730026259727,-1550.19,0.00027671,30]
[340890643,1730026259737,-500.0,0.00027671,30]
[340890644,1730026259748,-500.0,0.00027671,30]
[340890645,1730026259758,-659.42,0.00027671,30]
[340890646,1730026259768,-500.0,0.00027671,30]
[340890647,1730026259780,-1083.31,0.00027671,30]
[340890648,1730026259790,-1773.65,0.00027671,30]
[340890649,1730026259800,-500.0,0.00027671,30]
[340890650,1730026259810,-500.0,0.00027671,30]
[340890651,1730026259819,-500.0,0.00027671,30]
[340890652,1730026259828,-500.0,0.00027671,30]
[340890653,1730026259837,-645.79130107,0.00027671,30]
[340890654,1730026259846,-2655.05,0.00027671,30]
[340890655,1730026259855,-500.0,0.00027671,30]
[340890656,1730026259864,-628.88,0.00027671,30]
[340890657,1730026259874,-500.0,0.00027671,30]
[340890658,1730026259885,-535.91865741,0.00027671,30]
[340890659,1730026259894,-500.0,0.00027671,30]
[340890660,1730026259903,-500.0,0.00027671,30]
[340890661,1730026259912,-500.0,0.00027671,30]
[340890662,1730026259921,-500.0,0.00027671,30]
[340890663,1730026259930,-3409.84,0.00027671,30]
[340890664,1730026259940,-958.92,0.00027671,30]
[340890665,1730026259948,-670.28,0.00027671,30]
[340890666,1730026259957,-603.41607973,0.00027671,30]
[340890667,1730026259968,-500.0,0.00027671,10]
[340890668,1730026259977,-500.0,0.00027671,30]
[340890669,1730026259986,-500.0,0.00027671,30]
[340890670,1730026259996,-802.75,0.00027671,30]
[340890671,1730026260005,-758.45,0.00027671,30]
[340890672,1730026260014,-500.0,0.00027671,30]
[340890673,1730026260023,-500.0,0.00027671,30]
[340890674,1730026260033,-1182.86,0.00027671,30]
[340890675,1730026260042,-500.0,0.00027671,30]
[340890676,1730026260051,-500.0,0.00027671,30]
[340890677,1730026260061,-290.52836114,0.00027671,30]
[340890678,1730026260070,-500.0,0.00027671,30]
[340890679,1730026260080,-5848.19,0.00027671,30]
[340890680,1730026260089,-500.0,0.00027671,30]
[340890681,1730026260098,-500.0,0.00027671,30]
[340890682,1730026260107,-500.0,0.00027671,30]
[340890683,1730026260116,-500.0,0.00027671,30]
[340890684,1730026260125,-1000.83,0.00027671,30]
[340890685,1730026260135,-1546.89,0.00027671,30]
[340890686,1730026260144,-500.00000001,0.00027671,30]
[340890687,1730026260153,-485.80684806,0.00027671,30]
[340890688,1730026260163,-1148.65,0.00027671,30]
[340890689,1730026260173,-500.0,0.00027671,30]
[340890690,1730026260182,-500.0,0.00027671,30]
[340890691,1730026260191,-2648.0,0.00027671,30]
[340890692,1730026260201,-1296.7,0.00027671,30]
[340890693,1730026260210,-564.063091,0.00027671,30]
[340890694,1730026260220,-327.26730984,0.00027671,30]
[340890695,1730026260229,-500.0,0.00027671,30]
[340890696,1730026260239,-500.0,0.00027671,30]
[340890697,1730026260249,-793.27,0.00027671,30]
[340890698,1730026260258,-1554.61,0.00027671,30]
[340890699,1730026260268,-500.0,0.00027671,30]
[340890700,1730026260277,-2328.73,0.00027671,30]
[340890701,1730026260286,-500.0,0.00027671,30]
[340890702,1730026260297,-500.0,0.00027671,30]
[340890703,1730026260307,-1112.68,0.00027671,30]
[340890704,1730026260317,-500.0,0.00027671,30]
[340890705,1730026260326,-545.55316149,0.00027671,30]
[340890706,1730026260335,-500.0,0.00027671,30]
[340890707,1730026260346,-576.81803606,0.00027671,30]
[340890708,1730026260356,-2109.55,0.00027671,30]
[340890709,1730026260366,-500.0,0.00027671,30]
[340890710,1730026260377,-1002.83,0.00027671,30]
[340890711,1730026260386,-500.0,0.00027671,30]
[340890712,1730026260395,-500.0,0.00027671,30]
[340890713,1730026260404,-500.0,0.00027671,30]
[340890714,1730026260413,-500.0,0.00027671,2]
[340890715,1730026260423,-853.19,0.00027671,30]
[340890716,1730026260432,-500.0,0.00027671,30]
[340890717,1730026260443,-500.0,0.00027671,30]
[340890718,1730026260455,-2431.47,0.00027671,30]
[340890719,1730026260465,-484.38706093,0.00027671,30]
[340890720,1730026260478,-671.58,0.00027671,30]
[340890721,1730026260489,-500.0,0.00027671,30]
[340890722,1730026260499,-500.0,0.00027671,30]
[340890723,1730026260511,-500.0,0.00027671,30]
[340890724,1730026260522,-595.67,0.00027671,30]
[340890725,1730026260532,-608.67452038,0.00027671,30]
[340890726,1730026260541,-1222.41,0.00027671,30]
[340890727,1730026260551,-500.0,0.00027671,2]
[340890728,1730026260560,-563.74259435,0.00027671,30]
[340890729,1730026260570,-500.0,0.00027671,30]
[340890730,1730026260580,-500.0,0.00027671,30]
[340890731,1730026260590,-761.27,0.00027671,30]
[340890732,1730026260599,-500.0,0.00027671,30]
[340890733,1730026260608,-500.0,0.00027671,30]
[340890734,1730026260618,-2647.08,0.00027671,30]
[340890735,1730026260628,-879.51,0.00027671,30]
[340890736,1730026260639,-500.0,0.00027671,30]
[340890737,1730026260649,-500.63755813,0.00027673,5]
[340890738,1730026260660,-379.83900404,0.00027673,5]
[340890739,1730026260671,-500.0,0.00027673,5]
[340890740,1730026260681,-500.0,0.00027673,5]
[340890741,1730026260692,-339.73059297,0.00027673,5]
[340890742,1730026260703,-500.0,0.00027673,5]
[340890743,1730026260713,-500.0,0.00027673,5]
[340890744,1730026260724,-167.61227488,0.00027673,5]
[340890745,1730026260735,-500.0,0.00027673,5]
[340890746,1730026260746,-603.74310379,0.00027673,5]
[340890747,1730026260757,-500.0,0.00027673,5]
[340890748,1730026260768,-500.0,0.00027673,5]
[340890749,1730026260779,-500.0,0.00027673,5]
[340890750,1730026260788,-609.81372303,0.00027673,5]
[340890751,1730026260799,-500.0,0.00027673,5]
[340890752,1730026260810,-501.2554847,0.00027673,5]
[340890753,1730026260819,-500.0,0.00027673,5]
[340890754,1730026260829,-500.0,0.00027673,5]
[340890755,1730026260839,-500.0,0.00027673,5]
[340890756,1730026260849,-500.0,0.00027673,5]
[340890757,1730026260859,-500.0,0.00027673,5]
[340890758,1730026260869,-160.22562206,0.00027673,5]
[340890759,1730026260879,-500.0,0.00027673,5]
[340890760,1730026260889,-505.63403068,0.00027673,5]
[340890761,1730026260900,-500.0,0.00027673,5]
[340890762,1730026260912,-500.0,0.00027673,5]
[340890763,1730026260924,-500.0,0.00027945,30]
[340890764,1730026260934,-500.0,0.00027945,30]
[340890765,1730026260943,-500.0,0.00027945,30]
[340890766,1730026260954,-500.0,0.00027945,30]
[340890767,1730026260963,-500.0,0.00027945,30]
[340890768,1730026260975,-500.0,0.00027945,30]
[340890769,1730026260987,-500.0,0.00027945,30]
[340890770,1730026260996,-500.0,0.00027945,30]
[340890771,1730026261005,-500.0,0.00027945,30]
[340890772,1730026261014,-500.0,0.00027945,30]
[340890773,1730026261023,-559.50530274,0.00027945,30]
[340890774,1730026261032,-500.0,0.00027945,30]
[340890775,1730026261041,-500.0,0.00027945,30]
[340890776,1730026261052,-349.31869111,0.00027945,5]
[340890777,1730026261064,-855.09,0.00027945,30]
[340890778,1730026261075,-500.0,0.00027945,30]
[340890779,1730026261087,-500.0,0.00027945,30]
[340890780,1730026261096,-500.0,0.00027945,30]
[340890781,1730026261105,-500.0,0.00027945,30]
[340890782,1730026261118,-874.0,0.00027945,30]
[340890783,1730026261130,-500.0,0.00027945,30]
[340890784,1730026261141,-500.0,0.00027945,30]
[340890785,1730026261150,-287.0760604,0.00027945,30]
[340890786,1730026261526,-212.9239396,0.00027945,30]
[340890787,1730026261537,-1338.20606275,0.00027945,7]
[340890788,1730026261550,-258.12,0.00027945,7]
[340890789,1730026261703,-427.63664462,0.00027093,10]
[340890790,1730026261964,-35.47335538,0.00027093,10]
[340890791,1730026261974,-656.796017,0.00027123,7]
[340890792,1730026261983,-656.796017,0.00027325,7]
[340890793,1730026261992,-638.89966965,0.00027367,7]
[340890794,1730026262004,-17.89634735,0.00027367,7]
[340890795,1730026262014,-656.796017,0.00027367,7]
[340890796,1730026262023,-258.50763565,0.00027377,7]
[340890797,1730026262339,-656.796017,0.00027123,7]
[340890798,1730026262349,-656.796017,0.00027325,7]
[340890799,1730026262358,-173.256,0.00027336,2]
[340890800,1730026262368,-656.796017,0.00027367,7]
[340890801,1730026262379,-656.796017,0.00027367,7]
[340890802,1730026262389,-398.28838135,0.00027377,7]
[340890803,1730026262398,-214.07155065,0.00027377,7]
[340890805,1730026596104,200.000001,0.00013973,2]
[340890851,1730027432567,-154.029,0.0002457,2]
[340890852,1730027432577,-300.0,0.00025973,2]
[340890853,1730027432586,-300.0,0.00025973,2]
[340890854,1730027432596,-24900.0,0.00025974,2]
[340890855,1730027432605,-1218.237501,0.0002625,2]
[340890856,1730027432615,-232.491789,0.00026371,2]
[340890857,1730027432624,-232.491789,0.00026443,2]
[340890858,1730027432633,-232.491789,0.00026516,2]
[340890859,1730027432643,-232.491789,0.00026588,2]
[340890860,1730027432652,-232.491789,0.0002666,2]
[340890861,1730027432663,-232.491789,0.00026733,2]
[340890862,1730027432672,-232.491789,0.00026805,2]
[340890863,1730027432682,-232.491789,0.00026877,2]
[340890864,1730027432692,-232.491789,0.00026949,2]
[340890865,1730027432701,-151.0,0.00027,2]
[340890866,1730027432711,-232.491789,0.00027022,2]
[340890867,1730027432721,-232.491789,0.00027094,2]
[340890868,1730027432731,-232.491789,0.00027166,2]
[340890869,1730027432740,-232.491789,0.00027239,2]
[340890870,1730027432750,-319.68614851,0.00027239,2]
[340890871,1730027432759,-232.491789,0.00027311,2]
[340890872,1730027432768,-250.0,0.00027336,2]
[340890873,1730027432778,-385.92,0.00027357,10]
[340890874,1730027432788,-456.77,0.00027357,3]
[340890875,1730027432798,-321.6,0.00027357,10]
[340890876,1730027432808,-380.64,0.00027357,3]
[340890877,1730027432818,-268.0,0.00027357,10]
[340890878,1730027432827,-190.32,0.00027357,3]
[340890879,1730027432838,-151.153,0.00027366,2]
[340890880,1730027432847,-528.0,0.00027366,2]
[340890881,1730027432859,-1150.0,0.00027366,2]
[340890882,1730027432868,-2396.0,0.00027366,2]
[340890883,1730027432877,-503.0,0.00027366,10]
[340890884,1730027432886,-3075.54243365,0.00027367,4]
[340890885,1730027432898,-455.8688184,0.00027367,4]
[340890921,1730027440713,-2806.12410218,0.00027367,4]
[340890923,1730027440728,-1664.7293888,0.00027367,4]
[340890926,1730027440740,-10718.11939481,0.00027367,4]
[340890946,1730027440914,-1339.53903328,0.00027367,4]
[340891014,1730027444589,-18708.44400474,0.00027367,4]
[340891021,1730027446666,-7115.62899351,0.00027367,4]
[340891022,1730027446679,-3191.39570742,0.00027367,4]
[340891023,1730027446691,-487.1919645,0.00027367,4]
[340891180,1730028640209,-264.926834,0.000246,2]
[340891182,1730028640220,-396.19088807,0.00025852,2]
[340891183,1730028640231,-3052.668961,0.00025901,2]
[340891184,1730028640240,-1826.798062,0.00025921,2]
[340891185,1730028640251,-174.368841,0.00026077,2]
[340891186,1730028640262,-174.368841,0.00026271,2]
[340891188,1730028640272,-174.368841,0.00026465,2]
[340891190,1730028640283,-300.0,0.00026585,2]
[340891191,1730028640293,-300.0,0.00026585,2]
[340891192,1730028640304,-3052.668961,0.00026586,2]
[340891193,1730028640313,-174.368841,0.00026659,2]
[340891194,1730028640323,-174.368841,0.00026853,2]
[340891195,1730028640332,-2352.32274295,0.00026985,2]
[340891196,1730028640341,-174.368841,0.00027047,2]
[340891197,1730028640351,-174.368841,0.00027241,2]
[340891198,1730028640361,-3617.25297536,0.0002727,2]
[340891199,1730028640370,-3052.668961,0.0002727,2]
[340891200,1730028640379,-372.630242,0.000273,13]
[340891201,1730028640389,-199.943,0.0002736,16]
[340891202,1730028640398,-237.87,0.00027367,3]
[340891203,1730028640408,-713.65,0.00027367,3]
[340891204,1730028640417,-775.5,0.00027367,10]
[340891205,1730028640429,-564.54,0.00027367,10]
[340891206,1730028640439,-500.0005072,0.00027367,120]
[340891207,1730028640448,-528.0,0.00027368,2]
[340891208,1730028640457,-1150.0,0.00027368,2]
[340891209,1730028640467,-2396.0,0.00027368,2]
[340891210,1730028640476,-475.75,0.0002737,3]
[340891211,1730028640485,-279.25432325,0.0002737,2]
[340891212,1730028640495,-24190.3946504,0.0002737,4]
[340891213,1730028640505,-7695.49973638,0.0002737,4]
[340891214,1730028640515,-500.0,0.00027373,2]
[340891215,1730028640524,-500.0,0.00027373,2]
[340891216,1730028640534,-500.0,0.00027373,2]
[340891217,1730028640543,-500.0,0.00027373,2]
[340891218,1730028640555,-506.85835942,0.00027373,2]
[340891219,1730028640564,-500.0,0.00027373,2]
[340891220,1730028640575,-500.0,0.00027373,2]
[340891221,1730028640585,-500.0,0.00027373,2]
[340891223,1730028640598,-500.0,0.00027373,2]
[340891224,1730028640607,-500.0,0.00027373,2]
[340891227,1730028640618,-500.0,0.00027373,2]
[340891229,1730028640628,-437.74284576,0.00027376,2]
[340891231,1730028640638,-443.51740414,0.00027376,2]
[340891233,1730028640649,-8666.34782667,0.00027377,4]
[340891247,1730028640891,-63904.83612453,0.00027377,4]
[340891248,1730028640903,-23086.4992091,0.00027377,4]
[340891249,1730028640914,-12095.1973252,0.0002738,4]
[340891250,1730028640926,-3847.74986819,0.0002738,4]
[340891251,1730028640936,-253.34590891,0.00027386,2]
[340891252,1730028640945,-196.57681168,0.00027386,2]
[340891253,1730028640955,-542.1057499,0.00027386,2]
[340891254,1730028640965,-96761.5786016,0.00027387,4]
[340891255,1730028640974,-34629.7488137,0.00027387,4]
[340891256,1730028640983,-50595.247257,0.0002739,2]
[340891257,1730028640994,-500.0,0.00027397,30]
[340891258,1730028641005,-507.81264441,0.00027397,30]
[340891259,1730028641016,-500.0,0.00027397,30]
[340891260,1730028641026,-506.01309604,0.00027397,30]
[340891261,1730028641038,-502.20978501,0.00027397,30]
[340891262,1730028641049,-500.0,0.00027397,30]
[340891263,1730028641061,-503.25787872,0.00027397,30]
[340891264,1730028641074,-500.0,0.00027397,30]
[340891265,1730028641086,-500.0,0.00027397,30]
[340891266,1730028641095,-500.0,0.00027397,30]
[340891267,1730028641104,-345.2458021,0.00027397,30]
[340891268,1730028641115,-500.0,0.00027397,30]
[340891269,1730028641124,-565.64028552,0.00027397,30]
[340891270,1730028641134,-500.0,0.00027397,30]
[340891271,1730028641143,-500.0,0.00027397,30]
[340891272,1730028641156,-500.0,0.00027397,30]
[340891273,1730028641166,-501.96604217,0.00027397,30]
[340891274,1730028641176,-500.0,0.00027397,30]
[340891275,1730028641187,-500.96235397,0.00027397,5]
[340891276,1730028641197,-500.0,0.00027397,30]
[340891277,1730028641207,-500.0,0.00027397,30]
[340891278,1730028641217,-500.0,0.00027397,30]
[340891279,1730028641228,-500.0,0.00027397,30]
[340891280,1730028641238,-566.32,0.00027397,30]
[340891281,1730028641249,-500.0,0.00027397,30]
[340891282,1730028641258,-500.0,0.00027397,30]
[340891283,1730028641268,-1102.13,0.00027397,30]
[340891284,1730028641279,-500.0,0.00027397,30]
[340891285,1730028641290,-500.0,0.00027397,30]
[340891286,1730028641300,-500.0,0.00027397,30]
[340891287,1730028641310,-1726.05,0.00027397,30]
[340891288,1730028641319,-500.0,0.00027397,2]
[340891289,1730028641329,-802.36,0.00027397,30]
[340891290,1730028641339,-500.0,0.00027397,30]
[340891291,1730028641349,-451.34445534,0.00027397,30]
[340891292,1730028641358,-500.0,0.00027397,30]
[340891293,1730028641368,-500.0,0.00027397,30]